[Event "Istanbul Open 2018"]
[Site "Istanbul"]
[Date "2018.09.06"]
[Round "7"]
[White "Ozveren, Ali Bulent"]
[Black "Gulsoy, Mustafa Alpago"]
[Result "1/2-1/2"]
[ECO "A46"]
[WhiteElo "1849"]
[BlackElo "2061"]
[Annotator "NA RC"]
[PlyCount "194"]
[EventDate "2018.09.02"]
[EventType "swiss"]
[EventCountry "TUR"]
[SourceTitle "playchess.com"]
[Source "ChessBase"]
[SourceQuality "1"]
[TimeControl "5400+30"]

1. Nf3 {[%emt 0:07:30]} Nf6 {[%emt 0:00:30]} 2. g3 {[%emt 0:04:30]} b5 {[%emt 0:00:00]} 3. d4 {[%emt 0:06:30]} Bb7 {[%emt 0:00:00]} 4. Bg2 {[%emt 0:00:30]} e6 {[%emt 0:00:30]} 5. O-O {[%emt 0:00:30]} Be7 {[%emt 0:00:00]} 6. Bg5 {[%emt 0:02:30]} h6 {[%emt 0:00:00] LiveBook: 6 Games A46: 1 d4 Nf6 2 Nf3 e6: Torre, London and Colle Systems} (6... O-O 7. Nbd2 d5 8. c3 Nbd7 9. Qc2 c5 10. a4 a6 11. axb5 axb5 12. dxc5 Nxc5 13. Rxa8 Qxa8 14. Nd4 Qa6 {0-1 (66) Teske,H (2475)-Lenic,L (2639) Berlin 2015}) 7. Bxf6 {[%emt 0:01:30]} Bxf6 {[%emt 0:00:30]} 8. Nbd2 {[%emt 0:00:00]} d6 {[%emt 0:01:30]} 9. c3 {[%emt 0:03:00]} Nd7 {[%emt 0:02:30]} 10. Qc2 {[%emt 0:08:30]} Rc8 $146 {[%emt 0:02:30]} ({Predecessor:} 10... Be7 11. e4 O-O 12. Rad1 c5 13. Nb3 cxd4 14. cxd4 Qb6 15. Nbd2 Rac8 16. Qb1 Rc7 17. Rc1 Rfc8 18. Rxc7 Qxc7 19. Re1 a6 {½-½ (19) Wademark,O-Lindberg,H Borlange 1992}) 11. a4 {[%emt 0:04:30]} a6 {[%emt 0:00:00]} 12. axb5 {[%emt 0:00:30]} axb5 {[%emt 0:00:00]} 13. Ra7 {[%emt 0:01:30]} Rb8 {[%emt 0:01:30]} 14. Rfa1 {[%emt 0:04:30]} c5 {[%emt 0:01:30]} 15. Ne5 {[%emt 0:11:30]} d5 {[%emt 0:15:30]} 16. Nxd7 {[%emt 0:02:30]} Qxd7 {[%emt 0:00:30]} 17. dxc5 {[%emt 0:00:30]} O-O {[%emt 0:00:00]} 18. e3 {[%emt 0:06:30]} b4 {[%emt 0:09:00]} 19. c4 {[%emt 0:06:30]} Rfc8 {[%emt 0:22:30]} 20. cxd5 {[%emt 0:02:30]} exd5 {[%emt 0:00:00]} 21. Nb3 {[%emt 0:00:30]} Be7 {[%emt 0:10:00]} 22. Rc1 {[%emt 0:05:12]} Qd8 {[%emt 0:15:28]} 23. Qd2 {[%emt 0:10:42]} Ba8 {[%emt 0:04:30]} 24. Bh3 {[%emt 0:02:02]} Rc7 {[%emt 0:01:11]} 25. Rxc7 {[%emt 0:00:47]} Qxc7 {[%emt 0:00:01]} 26. c6 {[%emt 0:01:57]} Rb6 {[%emt 0:02:24]} 27. Nd4 {[%emt 0:01:27]} Bxc6 {[%emt 0:05:22]} 28. Qc2 {[%emt 0:00:55]} b3 {[%emt 0:00:01]} 29. Nxb3 {[%emt 0:00:44]} Qd8 {[%emt 0:03:30]} 30. Nd4 {[%emt 0:00:11]} Bb7 {[%emt 0:00:14]} 31. b3 {[%emt 0:02:12]} Bf6 {[%emt 0:00:32]} 32. Rd1 {[%emt 0:01:12]} g6 {[%emt 0:02:16]} 33. Bg2 {[%emt 0:00:14]} Qd6 {[%emt 0:00:50]} 34. h4 {[%emt 0:00:24]} h5 {[%emt 0:00:44]} 35. Ne2 {[%emt 0:00:35]} Kh7 {[%emt 0:01:24]} (35... Qd7 $16) 36. Nf4 {[%emt 0:00:08]} d4 {[%emt 0:00:23]} 37. Bxb7 {[%emt 0:00:47]} Rxb7 {[%emt 0:00:01]} 38. exd4 {[%emt 0:00:15]} Bxh4 {[%emt 0:00:15]} 39. Qc5 {[%emt 0:02:16]} Be7 {[%emt 0:00:09]} 40. Qc4 {[%emt 0:00:25]} Bg5 {[%emt 0:00:51]} 41. Ng2 {[%emt 0:00:18]} Kg7 {[%emt 0:00:18]} 42. Rd3 {[%emt 0:00:39]} h4 {[%emt 0:00:51]} 43. gxh4 {[%emt 0:00:50]} Rc7 {[%emt 0:00:01]} 44. Qxc7 {[%emt 0:00:36]} Qxc7 {[%emt 0:00:04]} 45. hxg5 {[%emt 0:00:07]} Qc1+ {[%emt 0:00:27]} 46. Kh2 {[%emt 0:00:16]} Qc2 {[%emt 0:00:20]} ({Black should try} 46... Qxg5 $17 47. Ne3 Kf6) 47. Rf3 {[%emt 0:00:21]} Qd1 {[%emt 0:00:01]} 48. Rg3 {[%emt 0:01:13]} Qxd4 {[%emt 0:00:20]} 49. Ne3 {[%emt 0:00:13]} Kf8 {[%emt 0:00:23]} 50. Kg1 {[%emt 0:00:42]} Qb4 {[%emt 0:00:57]} 51. Nc4 {[%emt 0:00:15]} Qe1+ {[%emt 0:00:18]} 52. Kg2 {[%emt 0:00:05]} Qe4+ {[%emt 0:00:24]} 53. Kg1 {[%emt 0:00:07]} Qf4 {[%emt 0:00:34]} 54. Kg2 {[%emt 0:00:05]} f6 {[%emt 0:01:14]} (54... Qd4 $15) 55. gxf6 {[%emt 0:00:06]} Kf7 {[%emt 0:00:11]} 56. Ne3 {[%emt 0:01:21]} Qe4+ {[%emt 0:00:18]} 57. Kg1 {[%emt 0:00:09]} Kxf6 {[%emt 0:00:52]} 58. Ng4+ {[%emt 0:00:21]} Kg7 {[%emt 0:00:26]} 59. Ne3 {[%emt 0:00:25]} Kf7 {[%emt 0:00:36]} 60. Nc4 {[%emt 0:00:12]} Kf6 {[%emt 0:00:36]} 61. Re3 {[%emt 0:00:24]} Qg4+ {[%emt 0:00:33]} 62. Rg3 {[%emt 0:00:07]} Qd1+ {[%emt 0:00:05]} 63. Kg2 {[%emt 0:00:04]} Qd5+ {[%emt 0:00:30]} 64. Kg1 {[%emt 0:00:04]} g5 {[%emt 0:00:13]} 65. Ne3 {[%emt 0:00:23]} Qe4 {[%emt 0:00:28]} 66. Ng4+ {[%emt 0:00:09]} Kg6 {[%emt 0:00:14]} 67. Nh2 {[%emt 0:00:12]} Qb1+ {[%emt 0:01:30]} 68. Kg2 {[%emt 0:00:38]} Kf5 {[%emt 0:00:25]} 69. Re3 {[%emt 0:02:18]} Qc2 {[%emt 0:01:09]} 70. Rf3+ {[%emt 0:00:13]} Ke6 {[%emt 0:01:04]} 71. Re3+ {[%emt 0:00:18]} Kd5 {[%emt 0:00:41]} 72. Nf3 {[%emt 0:01:00]} g4 {[%emt 0:00:46]} 73. Nh2 {[%emt 0:00:37]} Qf5 {[%emt 0:00:12]} 74. Rg3 {[%emt 0:00:42]} Qe4+ {[%emt 0:00:08]} 75. Kg1 {[%emt 0:00:21]} Qb1+ {[%emt 0:00:31]} 76. Nf1 {[%emt 0:00:07]} Ke6 {[%emt 0:00:21]} 77. Re3+ {[%emt 0:01:17]} Kf7 {[%emt 0:01:12]} 78. Kg2 {[%emt 0:00:08]} Qd1 {[%emt 0:00:17]} 79. Rg3 {[%emt 0:00:36]} Qd5+ {[%emt 0:00:06]} 80. Kg1 {[%emt 0:00:28]} Qd1 {[%emt 0:00:12]} 81. Re3 {[%emt 0:00:41]} Kg6 {[%emt 0:00:21]} 82. Re6+ {[%emt 0:01:24]} Kf5 {[%emt 0:00:42]} 83. Re3 {[%emt 0:00:17]} Kg6 {[%emt 0:00:05]} 84. Kg2 {[%emt 0:00:34]} Qd5+ {[%emt 0:00:02]} 85. Kh2 {[%emt 0:00:35]} Qf5 {[%emt 0:01:08]} 86. Kg3 {[%emt 0:00:42]} Kg5 {[%emt 0:00:28]} 87. Nh2 {[%emt 0:00:27]} Qf6 {[%emt 0:01:32]} 88. Kg2 {[%emt 0:01:07]} Qd6 {[%emt 0:00:42]} 89. Rg3 {[%emt 0:00:13]} Qd5+ {[%emt 0:00:21]} 90. Kg1 {[%emt 0:00:16]} Qd1+ {[%emt 0:00:05]} 91. Nf1 {[%emt 0:00:07]} Kf4 $11 {[%emt 0:00:51]} 92. Rc3 {[%emt 0:00:18]} Kg5 {[%emt 0:00:32]} 93. Rc5+ {[%emt 0:00:24]} Kf4 {[%emt 0:00:43]} 94. Rc4+ {[%emt 0:01:14]} Kg5 {[%emt 0:00:25]} 95. Rc3 {[%emt 0:00:13]} Kf4 {[%emt 0:00:17]} 96. Rg3 {[%emt 0:00:18]} Qb1 {[%emt 0:00:18]} 97. Kg2 {[%emt 0:01:20]} Qe4+ {[%emt 0:00:02]} 1/2-1/2

[Event "Istanbul Open 2018"]
[Site "Istanbul"]
[Date "2018.09.06"]
[Round "7"]
[White "Mehrinejad, Mansour"]
[Black "Bayramov, Araz"]
[Result "1/2-1/2"]
[ECO "D03"]
[WhiteElo "1839"]
[BlackElo "1750"]
[Annotator "NA RC"]
[PlyCount "109"]
[EventDate "2018.09.02"]
[EventType "swiss"]
[EventCountry "TUR"]
[SourceTitle "playchess.com"]
[Source "ChessBase"]
[SourceQuality "1"]
[TimeControl "5400+30"]

1. d4 {[%emt 0:00:30]} d5 {[%emt 0:02:30]} 2. Bg5 {[%emt 0:02:30]} Nf6 {[%emt 0:00:30]} 3. Nf3 {[%emt 0:00:30]} e6 {[%emt 0:00:30]} 4. e3 {[%emt 0:00:30]} c5 {[%emt 0:00:30]} 5. c3 {[%emt 0:00:30]} Nbd7 {[%emt 0:00:30]} 6. Bd3 {[%emt 0:00:00]} Be7 {[%emt 0:00:30]} 7. Nbd2 {[%emt 0:00:00]} b6 {[%emt 0:00:30]} 8. O-O {[%emt 0:00:30]} O-O {[%emt 0:00:00]} 9. Ne5 {[%emt 0:01:30]} Bb7 {[%emt 0:00:00]} 10. Nxd7 {[%emt 0:05:30] D03: 1 d4 d5 2 Nf3 Nf6 3 Bg5, including Torre Attack with early ...d5} (10. f4 Ne8 11. Bxe7 Qxe7 12. Rf3 g6 13. Rg3 Ng7 14. Rh3 f6 15. Nxd7 Qxd7 16. Qg4 Nf5 17. Qe2 e5 18. fxe5 fxe5 19. dxe5 {½-½ (36) Ponomarev,D (2409)-Goganov,A (2608) Voronezh 2015}) 10... Nxd7 {[%emt 0:01:30]} 11. Bf4 {[%emt 0:01:30]} Bf6 $146 {[%emt 0:06:30]} ({Predecessor:} 11... Nf6 12. f3 h6 13. Be5 Rc8 14. Bxf6 Bxf6 15. f4 cxd4 16. exd4 g6 17. Nf3 Bc6 {1-0 (29) Nguyen Thi Thu,Q (1968)-Le,T (1825) Nha Trang 2009}) 12. Nf3 {[%emt 0:07:30]} a5 {[%emt 0:03:30]} 13. Qe2 {[%emt 0:02:30]} c4 {[%emt 0:08:30]} 14. Bc2 {[%emt 0:00:30]} b5 {[%emt 0:00:30]} 15. e4 {[%emt 0:02:30]} dxe4 {[%emt 0:10:30]} 16. Bxe4 {[%emt 0:00:30]} Bxe4 {[%emt 0:01:30]} 17. Qxe4 {[%emt 0:00:00]} Nb6 {[%emt 0:00:00]} 18. Rfd1 {[%emt 0:10:00]} Nd5 {[%emt 0:11:00]} 19. Be5 {[%emt 0:00:30]} b4 {[%emt 0:02:30]} 20. Rac1 {[%emt 0:04:30]} bxc3 {[%emt 0:04:30]} 21. bxc3 {[%emt 0:00:30]} a4 {[%emt 0:01:30]} 22. Qe2 {[%emt 0:05:30]} Rc8 {[%emt 0:06:30]} 23. Bxf6 {[%emt 0:05:30]} Nxf6 {[%emt 0:06:30]} 24. Ne5 {[%emt 0:03:30]} Qa5 {[%emt 0:00:30]} 25. Rd2 {[%emt 0:03:30]} Nd5 {[%emt 0:06:30]} 26. Rdc2 {[%emt 0:01:30]} Rc7 {[%emt 0:02:30]} 27. h4 {[%emt 0:08:30]} a3 {[%emt 0:02:30]} 28. h5 {[%emt 0:02:30]} Qa6 {[%emt 0:05:36]} 29. h6 {[%emt 0:03:30]} g6 {[%emt 0:03:17]} 30. Re1 {[%emt 0:03:30]} f6 {[%emt 0:02:05]} 31. Nf3 {[%emt 0:03:30]} Kf7 {[%emt 0:00:35]} 32. Qe4 {[%emt 0:00:30] [#]} (32. g3 $11 {keeps the balance.}) 32... Qc6 {[%emt 0:04:47]} (32... Rb7 $1 $17 33. g4 Rb2) 33. g4 {[%emt 0:04:23]} Ne7 {[%emt 0:03:25]} 34. Qe3 {[%emt 0:02:24] [#]} (34. d5 $11 Qxd5 35. Qf4) 34... g5 $1 {[%emt 0:00:36]} 35. Rce2 {[%emt 0:01:21] [#]} Nd5 {[%emt 0:02:37]} (35... Rg8 $1 $17) 36. Qe4 {[%emt 0:01:44]} (36. Nxg5+ $5 fxg5 37. Qxg5 $11) 36... Kg8 {[%emt 0:00:01]} 37. Rc2 {[%emt 0:01:13]} (37. Qxe6+ $15 Qxe6 38. Rxe6) 37... Nf4 {[%emt 0:00:32]} 38. Qe3 {[%emt 0:01:10]} (38. Qxc6 $17 Rxc6 39. Rb1) 38... Rb8 {[%emt 0:00:15]} (38... Qd5 $142 39. Qe4 Qxe4 40. Rxe4 Rb8) 39. d5 {[%emt 0:02:14]} Nxd5 {[%emt 0:00:05]} 40. Qxe6+ {[%emt 0:00:17]} Qxe6 {[%emt 0:00:01]} 41. Rxe6 {[%emt 0:00:52]} Rb2 {[%emt 0:00:00]} 42. Ree2 {[%emt 0:04:23]} Rcb7 {[%emt 0:01:14]} 43. Nd4 {[%emt 0:00:35]} Rxc2 {[%emt 0:01:15]} 44. Rxc2 {[%emt 0:00:21]} Nf4 {[%emt 0:01:29]} 45. f3 $2 {[%emt 0:01:03] [#]} (45. Kh2) 45... Kf7 $2 {[%emt 0:00:25]} (45... Rb2 $1 $19 46. Rc1 Rxa2) 46. Kf2 {[%emt 0:00:30]} Rb1 {[%emt 0:00:39]} 47. Ke3 {[%emt 0:00:36]} Kg6 {[%emt 0:00:15]} ({Black should try} 47... Nd5+ $17 48. Ke4 Ne7) 48. Nf5 $1 {[%emt 0:02:22]} Rb2 {[%emt 0:00:40]} 49. Kd2 $1 {[%emt 0:01:12]} Rb1 $11 {[%emt 0:00:00]} 50. Ne3 {[%emt 0:00:26]} Rh1 {[%emt 0:02:01]} 51. Nxc4 {[%emt 0:00:55]} Rh2+ {[%emt 0:00:05]} 52. Kd1 {[%emt 0:00:18]} Rh1+ {[%emt 0:00:05]} 53. Kd2 {[%emt 0:00:16]} Rh2+ {[%emt 0:00:10]} 54. Kd1 {[%emt 0:00:18]} Rh1+ {[%emt 0:00:28]} 55. Kd2 {[%emt 0:00:08]} 1/2-1/2

[Event "Istanbul Open 2018"]
[Site "Istanbul"]
[Date "2018.09.06"]
[Round "7"]
[White "Hakkaki Fard, Pedram"]
[Black "Konuk, Ali"]
[Result "1/2-1/2"]
[ECO "A82"]
[WhiteElo "1815"]
[BlackElo "1807"]
[Annotator "NA RC"]
[PlyCount "150"]
[EventDate "2018.09.02"]
[EventType "swiss"]
[EventCountry "TUR"]
[SourceTitle "playchess.com"]
[Source "ChessBase"]
[SourceQuality "1"]
[TimeControl "5400+30"]

1. d4 {[%emt 0:00:30]} f5 {[%emt 0:01:30]} 2. e4 {[%emt 0:03:30]} fxe4 {[%emt 0:02:30]} 3. f3 {[%emt 0:00:00]} Nf6 {[%emt 0:00:30]} 4. Nc3 {[%emt 0:00:00]} Nc6 {[%emt 0:00:30]} 5. fxe4 {[%emt 0:00:30] A82: Dutch Defence: Staunton Gambit} e5 {[%emt 0:01:30]} 6. d5 {[%emt 0:16:30]} (6. dxe5 Nxe5 7. Nf3 Nxf3+ 8. Qxf3 Bb4 9. Bg5 d6 10. Bc4 Bg4 11. Bxf6 Bxc3+ 12. Qxc3 Qxf6 13. Qxf6 gxf6 {½-½ (26) Kasyan,A (2305)-Dzhumaev,M (2552) Tashkent 2009}) 6... Ne7 {[%emt 0:11:30]} 7. Bg5 {[%emt 0:04:30]} d6 $146 {[%emt 0:04:30]} ({Predecessor:} 7... Ng6 8. Bd3 Bc5 9. Qd2 O-O 10. O-O-O a5 11. Nf3 d6 12. Rdf1 Bd7 13. Be3 Bxe3 14. Qxe3 {1-0 (39) Wornath,K (2230)-Pfaff,M Wiesbaden 1997}) 8. Bxf6 {[%emt 0:03:30]} gxf6 {[%emt 0:00:30]} 9. Qh5+ {[%emt 0:00:30]} Ng6 {[%emt 0:00:30]} 10. Nf3 {[%emt 0:01:30]} Qe7 {[%emt 0:00:30]} 11. Nh4 {[%emt 0:17:30]} Rg8 {[%emt 0:06:30]} 12. O-O-O {[%emt 0:06:30]} a6 {[%emt 0:00:00]} 13. Nf5 {[%emt 0:05:30]} Qf7 {[%emt 0:00:00]} 14. g3 {[%emt 0:03:30]} Bd7 {[%emt 0:00:30]} 15. Be2 {[%emt 0:00:30]} O-O-O {[%emt 0:00:30]} 16. Rhf1 {[%emt 0:00:30]} Rh8 {[%emt 0:05:30]} 17. Rd3 {[%emt 0:06:30]} Be7 {[%emt 0:01:30]} 18. Rdf3 {[%emt 0:00:30]} Rdf8 {[%emt 0:00:30]} 19. Nd1 {[%emt 0:03:30]} Bd8 {[%emt 0:01:30]} 20. Rc3 {[%emt 0:01:30]} Kb8 {[%emt 0:00:30]} 21. Qf3 {[%emt 0:01:30]} Ne7 {[%emt 0:08:30]} 22. Nfe3 {[%emt 0:00:30]} Nc8 {[%emt 0:00:00]} 23. Nc4 {[%emt 0:00:30]} h5 {[%emt 0:02:00]} 24. Nde3 {[%emt 0:00:30]} Nb6 {[%emt 0:03:30]} 25. Nf5 {[%emt 0:03:12]} Bb5 {[%emt 0:03:30]} (25... Qh7 $16 {is a better defense.}) 26. Nxb6 {[%emt 0:00:22]} Bxe2 {[%emt 0:00:30]} 27. Qxe2 {[%emt 0:00:01]} cxb6 {[%emt 0:01:30]} 28. Nxd6 {[%emt 0:00:25]} Qd7 {[%emt 0:00:30]} 29. Nf5 {[%emt 0:02:25]} b5 {[%emt 0:00:00]} 30. Rcf3 {[%emt 0:03:03]} Rh7 {[%emt 0:03:00]} 31. Nh4 {[%emt 0:01:30]} Qg4 {[%emt 0:14:30]} 32. Qd3 {[%emt 0:02:07]} Rc7 {[%emt 0:00:30]} 33. Nf5 {[%emt 0:04:32]} Rh8 {[%emt 0:01:30]} 34. Nh4 {[%emt 0:05:56]} Rc4 {[%emt 0:00:30]} 35. Re1 {[%emt 0:00:44]} Ba5 {[%emt 0:03:30]} 36. Re2 {[%emt 0:00:01]} Rd4 {[%emt 0:03:59]} 37. Qe3 {[%emt 0:00:36]} Bb6 $1 {[%emt 0:00:39]} 38. Qa3 $2 {[%emt 0:02:49]} (38. h3 $11 {and White has nothing to worry.} Qxh3 39. Qc3) 38... b4 {[%emt 0:00:36]} (38... Rxe4 $19 {has better winning chances.} 39. Rxe4 Qxe4) 39. Qb3 {[%emt 0:00:44]} Rxe4 {[%emt 0:00:24]} 40. Rxe4 {[%emt 0:00:34]} Qxe4 {[%emt 0:00:05]} 41. Rf1 {[%emt 0:00:47]} Rc8 {[%emt 0:04:03]} 42. Rd1 {[%emt 0:00:13]} a5 {[%emt 0:03:17]} 43. Qd3 {[%emt 0:00:12]} Qxd3 {[%emt 0:00:52]} 44. Rxd3 {[%emt 0:00:01]} e4 {[%emt 0:00:10]} 45. Rd1 {[%emt 0:01:18]} Rd8 {[%emt 0:01:17]} 46. c3 {[%emt 0:00:30]} bxc3 {[%emt 0:00:00]} 47. bxc3 {[%emt 0:00:46]} e3 {[%emt 0:00:30]} 48. Nf3 {[%emt 0:00:03]} Kc7 {[%emt 0:01:14]} 49. Kc2 {[%emt 0:00:25]} Kd6 {[%emt 0:00:28]} 50. c4 {[%emt 0:00:10]} Re8 {[%emt 0:01:18]} 51. Ne1 {[%emt 0:01:17]} ({White should try} 51. Re1 $15) 51... a4 {[%emt 0:01:05]} 52. Rb1 {[%emt 0:00:21] [#]} Ba5 $1 {[%emt 0:00:34]} 53. Kd3 {[%emt 0:00:38]} b6 $2 {[%emt 0:00:24]} (53... e2 $19 54. h3 b6) 54. Ke2 {[%emt 0:00:19]} Kc5 {[%emt 0:00:38]} 55. Rc1 {[%emt 0:00:08]} (55. Ng2 $14) 55... Bd2 {[%emt 0:01:39]} 56. Rc2 {[%emt 0:00:15]} a3 {[%emt 0:02:20]} 57. Nf3 {[%emt 0:00:44]} Bb4 {[%emt 0:01:03]} 58. Ne1 {[%emt 0:00:39]} Kd4 {[%emt 0:00:39]} 59. Nd3 {[%emt 0:00:33]} Bd6 {[%emt 0:00:23]} 60. Nf4 {[%emt 0:00:54]} Bxf4 {[%emt 0:01:27]} 61. gxf4 {[%emt 0:00:02]} Ke4 {[%emt 0:00:00]} 62. Rc3 {[%emt 0:00:18]} Kxf4 {[%emt 0:00:00]} 63. Rxa3 {[%emt 0:00:18]} Rg8 $2 {[%emt 0:00:34]} (63... f5 $11) 64. Rxe3 {[%emt 0:00:43]} Rg2+ {[%emt 0:00:12]} 65. Kd3 {[%emt 0:00:03]} Rxa2 {[%emt 0:00:23]} 66. Re4+ {[%emt 0:00:14]} Kf5 {[%emt 0:00:38] [#]} 67. h4 $2 {[%emt 0:00:22]} (67. Re1 $1 $18) 67... Ra3+ {[%emt 0:02:10]} 68. Kd4 {[%emt 0:00:02]} Ra4 $2 {[%emt 0:00:25]} ({Black should play} 68... Ra1 $14 69. Re2 Rh1) 69. d6 $2 {[%emt 0:00:34]} ({White should try} 69. Re1 $18) 69... Ra8 $2 {[%emt 0:00:45]} (69... Ra1 $11) 70. Kd5 {[%emt 0:00:27]} Ra5+ {[%emt 0:00:49]} 71. Kd4 {[%emt 0:00:00]} Ra8 {[%emt 0:00:00]} 72. Re7 {[%emt 0:00:15]} Rd8 {[%emt 0:00:25]} 73. Kd5 {[%emt 0:00:02]} Kg4 {[%emt 0:00:35]} 74. Kc6 {[%emt 0:02:20]} Rc8+ {[%emt 0:01:01]} 75. Rc7 {[%emt 0:00:02]} Rd8 $18 {[%emt 0:00:56]} 1/2-1/2

[Event "Istanbul Open 2018"]
[Site "Istanbul"]
[Date "2018.09.06"]
[Round "7"]
[White "Gezici, Omer Ata"]
[Black "Pektas, Gokdeniz"]
[Result "1-0"]
[ECO "B31"]
[WhiteElo "1736"]
[BlackElo "1602"]
[Annotator "NA RC"]
[PlyCount "103"]
[EventDate "2018.09.02"]
[EventType "swiss"]
[EventCountry "TUR"]
[SourceTitle "playchess.com"]
[Source "ChessBase"]
[SourceQuality "1"]
[TimeControl "5400+30"]

1. e4 {[%emt 0:00:30]} c5 {[%emt 0:00:30]} 2. Nf3 {[%emt 0:00:00]} Nc6 {[%emt 0:00:00]} 3. Bb5 {[%emt 0:00:00]} g6 {[%emt 0:00:00]} 4. Bxc6 {[%emt 0:00:30]} dxc6 {[%emt 0:00:30]} 5. d3 {[%emt 0:00:00]} Bg4 {[%emt 0:00:30]} 6. Nbd2 {[%emt 0:00:00]} Bg7 {[%emt 0:00:00]} 7. h3 {[%emt 0:01:30]} Bxf3 {[%emt 0:00:00]} 8. Nxf3 {[%emt 0:00:30]} Nf6 {[%emt 0:00:30]} 9. Be3 {[%emt 0:10:30]} Nd7 {[%emt 0:00:00]} 10. c3 {[%emt 0:02:30]} e5 {[%emt 0:00:00]} 11. Qd2 {[%emt 0:01:30]} Qe7 {[%emt 0:01:30]} 12. O-O {[%emt 0:01:30]} O-O {[%emt 0:00:30]} 13. Rfe1 {[%emt 0:04:30]} Rad8 {[%emt 0:07:30]} 14. Rad1 {[%emt 0:03:30]} Rfe8 {[%emt 0:01:30]} 15. Qc2 {[%emt 0:02:30]} Nf8 {[%emt 0:02:30]} 16. Qa4 {[%emt 0:11:30]} Ne6 {[%emt 0:01:30]} 17. Qxa7 {[%emt 0:06:30]} Ra8 {[%emt 0:00:30]} 18. Qb6 {[%emt 0:00:30]} Rxa2 {[%emt 0:00:30]} 19. d4 {[%emt 0:04:30]} cxd4 {[%emt 0:10:30]} 20. cxd4 {[%emt 0:00:30]} exd4 {[%emt 0:00:00]} 21. Nxd4 {[%emt 0:01:30]} Ra6 {[%emt 0:08:00]} 22. Nxc6 {[%emt 0:10:30]} Rxb6 {[%emt 0:00:30]} 23. Nxe7+ {[%emt 0:00:00]} Rxe7 {[%emt 0:00:00]} 24. Bxb6 {[%emt 0:00:00]} Bxb2 {[%emt 0:00:00]} 25. Re2 {[%emt 0:04:30]} Be5 {[%emt 0:00:30]} 26. g3 {[%emt 0:01:30]} g5 {[%emt 0:00:30]} 27. Rd5 {[%emt 0:03:30]} Bc7 {[%emt 0:03:30]} 28. Rb2 {[%emt 0:06:30]} h6 {[%emt 0:02:30]} 29. Bxc7 {[%emt 0:01:30]} Rxc7 {[%emt 0:07:30]} 30. Rdb5 {[%emt 0:02:30]} Nd8 {[%emt 0:00:30]} 31. Kg2 {[%emt 0:00:30]} Kg7 {[%emt 0:03:30]} 32. Kf3 {[%emt 0:01:45]} Rc3+ {[%emt 0:00:30]} 33. Ke2 {[%emt 0:02:46]} Rc7 {[%emt 0:01:30]} 34. Ke3 {[%emt 0:00:51]} Kg8 {[%emt 0:06:30]} 35. Kd4 {[%emt 0:01:35]} Kg7 {[%emt 0:07:30]} 36. Kd5 {[%emt 0:04:46]} Rd7+ {[%emt 0:00:00]} 37. Kc5 {[%emt 0:00:50]} Rd1 {[%emt 0:11:00]} 38. Rb1 {[%emt 0:03:05]} Rd2 {[%emt 0:00:30]} 39. R5b2 {[%emt 0:01:05]} Ne6+ {[%emt 0:05:30]} 40. Kb6 {[%emt 0:01:02]} Rd4 {[%emt 0:00:00]} 41. Re2 {[%emt 0:01:09]} Kg6 {[%emt 0:04:01]} 42. Kb5 {[%emt 0:02:45]} h5 {[%emt 0:03:16]} 43. Kb6 {[%emt 0:01:21]} h4 {[%emt 0:00:42]} 44. gxh4 {[%emt 0:00:56]} gxh4 {[%emt 0:00:05]} 45. Re3 {[%emt 0:02:00]} Rd2 {[%emt 0:00:24]} 46. Rf3 {[%emt 0:00:17]} Ng5 {[%emt 0:00:32]} 47. Rg1 {[%emt 0:01:00]} Rb2+ {[%emt 0:12:52]} 48. Kc7 {[%emt 0:00:12]} f6 {[%emt 0:00:01]} 49. Rf5 {[%emt 0:00:44]} Rb4 {[%emt 0:01:08]} 50. Rg4 {[%emt 0:00:35]} Kh6 {[%emt 0:01:26]} 51. Rxf6+ {[%emt 0:00:55]} Kh5 {[%emt 0:00:00]} 52. Rf5 {[%emt 0:00:00]} 1-0